[Event "Titled Tuesday Blitz May 25 2021"]
[White "Dobre, Claudiu-Cristian"]
[Black "Samadov, Read"]
[WhiteFideId "1211854"]
[BlackFideId "13417444"]
[WhiteElo "2230"]
[BlackElo "2084"]
[Result "0-1"]
[Round "01"]
[TimeControl "180+1"]
[Date "2021.05.25"]
[WhiteClock "0:01:06"]
[BlackClock "0:00:47"]

1. c4 {[%clk 0:02:59]}  Nf6 {[%clk 0:02:58]} 2. Nc3 {[%clk 0:02:58]}  e6 {[%clk 0:02:55]} 3. e4 {[%clk 0:02:58]}  d5 {[%clk 0:02:55]} 4. e5 {[%clk 0:02:55]}  Ne4 {[%clk 0:02:56]} 5. Nf3 {[%clk 0:02:38]}  Nc6 {[%clk 0:02:49]} 6. d4 {[%clk 0:02:34]}  Bb4 {[%clk 0:02:43]} 7. Qc2 {[%clk 0:02:30]}  f6 {[%clk 0:02:32]} 8. Bd3 {[%clk 0:02:14]}  f5 {[%clk 0:02:26]} 9. O-O {[%clk 0:02:10]}  dxc4 {[%clk 0:01:50]} 10. Bxc4 {[%clk 0:01:52]}  Nxc3 {[%clk 0:01:37]} 11. bxc3 {[%clk 0:01:51]}  Be7 {[%clk 0:01:38]} 12. a4 {[%clk 0:01:40]}  b6 {[%clk 0:01:24]} 13. Qa2 {[%clk 0:01:37]}  Qd7 {[%clk 0:01:20]} 14. d5 {[%clk 0:01:25]}  exd5 {[%clk 0:01:18]} 15. Rd1 {[%clk 0:01:18]}  Bb7 {[%clk 0:01:08]} 16. Bxd5 {[%clk 0:01:14]}  Kf8 {[%clk 0:00:50]} 17. Be6 {[%clk 0:01:06]}  Qxd1+ {[%clk 0:00:47]} 0-1


[Site "https://www.chess.com"]

[Event "Titled Tuesday Blitz May 25 2021"]
[White "Dushyant Sharma"]
[Black "Kiselev, Vitaliy"]
[WhiteFideId "25065130"]
[BlackFideId "4194128"]
[WhiteElo "2019"]
[BlackElo "2444"]
[Result "1/2-1/2"]
[Round "01"]
[TimeControl "180+1"]
[Date "2021.05.25"]
[WhiteClock "0:01:11"]
[BlackClock "0:00:26"]

1. e4 {[%clk 0:03:00]}  c5 {[%clk 0:02:59]} 2. Nf3 {[%clk 0:03:00]}  Nc6 {[%clk 0:02:59]} 3. d4 {[%clk 0:02:56]}  cxd4 {[%clk 0:03:00]} 4. Nxd4 {[%clk 0:02:57]}  e5 {[%clk 0:03:00]} 5. Nxc6 {[%clk 0:02:57]}  bxc6 {[%clk 0:03:01]} 6. Nc3 {[%clk 0:02:57]}  Nf6 {[%clk 0:03:01]} 7. Bd3 {[%clk 0:02:57]}  Be7 {[%clk 0:02:59]} 8. O-O {[%clk 0:02:58]}  d6 {[%clk 0:02:59]} 9. f4 {[%clk 0:02:57]}  O-O {[%clk 0:02:55]} 10. Kh1 {[%clk 0:02:57]}  Be6 {[%clk 0:02:49]} 11. Qe1 {[%clk 0:02:53]}  Qc7 {[%clk 0:02:40]} 12. fxe5 {[%clk 0:02:51]}  dxe5 {[%clk 0:02:40]} 13. Bg5 {[%clk 0:02:50]}  Ng4 {[%clk 0:02:26]} 14. Bxe7 {[%clk 0:02:46]}  Qxe7 {[%clk 0:02:27]} 15. Qg3 {[%clk 0:02:46]}  h5 {[%clk 0:02:20]} 16. h3 {[%clk 0:02:40]}  h4 {[%clk 0:02:18]} 17. Qe1 {[%clk 0:02:33]}  Nh6 {[%clk 0:02:16]} 18. Qe3 {[%clk 0:02:30]}  Rab8 {[%clk 0:01:53]} 19. b3 {[%clk 0:02:27]}  g5 {[%clk 0:01:46]} 20. Rae1 {[%clk 0:02:12]}  f6 {[%clk 0:01:43]} 21. Nd1 {[%clk 0:01:52]}  Qd7 {[%clk 0:01:28]} 22. Qd2 {[%clk 0:01:47]}  Rbd8 {[%clk 0:01:19]} 23. Ne3 {[%clk 0:01:46]}  Kg7 {[%clk 0:01:05]} 24. Qe2 {[%clk 0:01:23]}  Bf7 {[%clk 0:00:53]} 25. Nf5+ {[%clk 0:01:16]}  Nxf5 {[%clk 0:00:52]} 26. Rxf5 {[%clk 0:01:17]}  Bg6 {[%clk 0:00:49]} 27. Rf2 {[%clk 0:01:17]}  Qe7 {[%clk 0:00:42]} 28. Ref1 {[%clk 0:01:17]}  Rd6 {[%clk 0:00:40]} 29. a4 {[%clk 0:01:16]}  Qe8 {[%clk 0:00:33]} 30. Qe3 {[%clk 0:01:15]}  Qe7 {[%clk 0:00:31]} 31. Qc5 {[%clk 0:01:14]}  Re6 {[%clk 0:00:26]} 32. Qe3 {[%clk 0:01:10]}  Rd6 {[%clk 0:00:25]} 33. Qc5 {[%clk 0:01:10]}  Re6 {[%clk 0:00:25]} 34. Qe3 {[%clk 0:01:11]}  Rd6 {[%clk 0:00:26]} 1/2-1/2


[Site "https://www.chess.com"]

[Event "Titled Tuesday Blitz May 25 2021"]
[White "Elgersma, Onno"]
[Black "Bortnyk, Olexandr"]
[WhiteFideId "1053531"]
[BlackFideId "14120828"]
[WhiteElo "2464"]
[BlackElo "2723"]
[Result "0-1"]
[Round "01"]
[TimeControl "180+1"]
[Date "2021.05.25"]
[WhiteClock "0:00:06"]
[BlackClock "0:00:05"]

1. d4 {[%clk 0:03:00]}  d6 {[%clk 0:02:50]} 2. Nf3 {[%clk 0:02:58]}  Nf6 {[%clk 0:02:48]} 3. Bg5 {[%clk 0:02:52]}  c6 {[%clk 0:02:42]} 4. e3 {[%clk 0:02:46]}  Bg4 {[%clk 0:02:36]} 5. Nbd2 {[%clk 0:02:37]}  Nbd7 {[%clk 0:02:33]} 6. Be2 {[%clk 0:02:36]}  Qc7 {[%clk 0:02:12]} 7. O-O {[%clk 0:02:34]}  e5 {[%clk 0:02:09]} 8. e4 {[%clk 0:02:07]}  Be7 {[%clk 0:02:06]} 9. c3 {[%clk 0:02:05]}  O-O {[%clk 0:02:02]} 10. h3 {[%clk 0:02:05]}  Bh5 {[%clk 0:02:02]} 11. Qc2 {[%clk 0:02:00]}  Rad8 {[%clk 0:01:51]} 12. Rfe1 {[%clk 0:01:55]}  Rfe8 {[%clk 0:01:51]} 13. Rad1 {[%clk 0:01:54]}  h6 {[%clk 0:01:47]} 14. Bh4 {[%clk 0:01:54]}  Bg6 {[%clk 0:01:47]} 15. dxe5 {[%clk 0:01:26]}  dxe5 {[%clk 0:01:44]} 16. Bc4 {[%clk 0:01:26]}  b5 {[%clk 0:01:34]} 17. Bb3 {[%clk 0:01:11]}  a5 {[%clk 0:01:25]} 18. a3 {[%clk 0:00:58]}  Nc5 {[%clk 0:01:23]} 19. Bg3 {[%clk 0:00:56]}  Bd6 {[%clk 0:01:04]} 20. Ba2 {[%clk 0:00:50]}  a4 {[%clk 0:01:02]} 21. Nh4 {[%clk 0:00:41]}  Bh7 {[%clk 0:00:58]} 22. Nf5 {[%clk 0:00:23]}  Nfxe4 {[%clk 0:00:54]} 23. Nxe4 {[%clk 0:00:21]}  Bxf5 {[%clk 0:00:51]} 24. Nf6+ {[%clk 0:00:21]}  gxf6 {[%clk 0:00:52]} 25. Qxf5 {[%clk 0:00:21]}  Bf8 {[%clk 0:00:30]} 26. Bh4 {[%clk 0:00:19]}  Bg7 {[%clk 0:00:19]} 27. Bxf6 {[%clk 0:00:19]}  Rxd1 {[%clk 0:00:15]} 28. Rxd1 {[%clk 0:00:19]}  Ne6 {[%clk 0:00:05]} 29. Rd3 {[%clk 0:00:16]}  Kf8 {[%clk 0:00:03]} 30. Rg3 {[%clk 0:00:16]}  Bxf6 {[%clk 0:00:03]} 31. Qxf6 {[%clk 0:00:17]}  Qd6 {[%clk 0:00:03]} 32. Qxh6+ {[%clk 0:00:18]}  Ke7 {[%clk 0:00:04]} 33. Qh7 {[%clk 0:00:10]}  Rf8 {[%clk 0:00:04]} 34. Rd3 {[%clk 0:00:09]}  Qc5 {[%clk 0:00:03]} 35. Qh4+ {[%clk 0:00:09]}  f6 {[%clk 0:00:03]} 36. Bxe6 {[%clk 0:00:08]}  Kxe6 {[%clk 0:00:04]} 37. Qg4+ {[%clk 0:00:08]}  f5 {[%clk 0:00:04]} 38. Qg6+ {[%clk 0:00:08]}  Ke7 {[%clk 0:00:05]} 39. Qg7+ {[%clk 0:00:07]}  Ke6 {[%clk 0:00:05]} 40. Qd7+ {[%clk 0:00:06]}  Kf6 {[%clk 0:00:05]} 41. Qd6+ {[%clk 0:00:07]}  Qxd6 {[%clk 0:00:05]} 42. Rxd6+ {[%clk 0:00:08]}  Kg5 {[%clk 0:00:06]} 43. Rxc6 {[%clk 0:00:09]}  Rd8 {[%clk 0:00:07]} 44. Rc5 {[%clk 0:00:09]}  Rd1+ {[%clk 0:00:07]} 45. Kh2 {[%clk 0:00:10]}  Rd2 {[%clk 0:00:08]} 46. Rxb5 {[%clk 0:00:10]}  e4 {[%clk 0:00:06]} 47. Kg1 {[%clk 0:00:07]}  Kf4 {[%clk 0:00:05]} 48. g3+ {[%clk 0:00:07]}  Kg5 {[%clk 0:00:05]} 49. g4 {[%clk 0:00:06]}  Kg6 {[%clk 0:00:04]} 50. Rxf5 {[%clk 0:00:06]}  Rxb2 {[%clk 0:00:04]} 51. Kg2 {[%clk 0:00:07]}  Rb3 {[%clk 0:00:03]} 52. Rf4 {[%clk 0:00:07]}  Rxc3 {[%clk 0:00:04]} 53. Rxe4 {[%clk 0:00:07]}  Rxa3 {[%clk 0:00:05]} 54. Rb4 {[%clk 0:00:07]}  Ra1 {[%clk 0:00:05]} 55. Rb8 {[%clk 0:00:08]}  Kg5 {[%clk 0:00:05]} 56. Ra8 {[%clk 0:00:08]}  a3 {[%clk 0:00:06]} 57. Ra5+ {[%clk 0:00:07]}  Kf4 {[%clk 0:00:06]} 58. g5 {[%clk 0:00:06]}  a2 {[%clk 0:00:04]} 59. h4 {[%clk 0:00:06]}  Kg4 {[%clk 0:00:03]} 60. Ra4+ {[%clk 0:00:06]}  Kh5 {[%clk 0:00:03]} 61. f3 {[%clk 0:00:06]}  Kg6 {[%clk 0:00:02]} 62. Ra6+ {[%clk 0:00:06]}  Kf5 {[%clk 0:00:03]} 63. g6 {[%clk 0:00:06]}  Rb1 {[%clk 0:00:03]} 64. Rxa2 {[%clk 0:00:05]}  Kxg6 {[%clk 0:00:03]} 65. Ra6+ {[%clk 0:00:06]}  Kh5 {[%clk 0:00:04]} 66. Ra4 {[%clk 0:00:05]}  Rc1 {[%clk 0:00:03]} 67. Kg3 {[%clk 0:00:05]}  Rg1+ {[%clk 0:00:04]} 68. Kh2 {[%clk 0:00:05]}  Rb1 {[%clk 0:00:04]} 69. Re4 {[%clk 0:00:04]}  Ra1 {[%clk 0:00:04]} 70. Kh3 {[%clk 0:00:04]}  Rh1+ {[%clk 0:00:04]} 71. Kg3 {[%clk 0:00:04]}  Rg1+ {[%clk 0:00:04]} 72. Kf2 {[%clk 0:00:04]}  Ra1 {[%clk 0:00:04]} 73. Kg3 {[%clk 0:00:04]}  Rg1+ {[%clk 0:00:04]} 74. Kf2 {[%clk 0:00:05]}  Ra1 {[%clk 0:00:05]} 75. Ke3 {[%clk 0:00:05]}  Ra3+ {[%clk 0:00:04]} 76. Kd4 {[%clk 0:00:05]}  Rxf3 {[%clk 0:00:04]} 77. Ke5 {[%clk 0:00:04]}  Rf8 {[%clk 0:00:04]} 78. Kd4 {[%clk 0:00:04]}  Rd8+ {[%clk 0:00:04]} 79. Ke3 {[%clk 0:00:04]}  Ra8 {[%clk 0:00:04]} 80. Kf3 {[%clk 0:00:04]}  Ra3+ {[%clk 0:00:04]} 81. Kf4 {[%clk 0:00:03]}  Kxh4 {[%clk 0:00:04]} 82. Ke5+ {[%clk 0:00:04]}  Kg5 {[%clk 0:00:05]} 83. Re1 {[%clk 0:00:04]}  Ra8 {[%clk 0:00:05]} 84. Rg1+ {[%clk 0:00:05]}  Kh4 {[%clk 0:00:05]} 85. Ke4 {[%clk 0:00:05]}  Re8+ {[%clk 0:00:05]} 86. Kd5 {[%clk 0:00:05]}  Kh5 {[%clk 0:00:05]} 87. Kd6 {[%clk 0:00:05]}  Re4 {[%clk 0:00:05]} 88. Kd7 {[%clk 0:00:05]}  Rg4 {[%clk 0:00:05]} 89. Kd6 {[%clk 0:00:06]}  Rxg1 {[%clk 0:00:05]} 0-1


[Site "https://www.chess.com"]

[Event "Titled Tuesday Blitz May 25 2021"]
[White "Enriquack"]
[Black "Timofeev, Artyom"]
[BlackFideId "4140419"]
[WhiteElo "2409"]
[BlackElo "2582"]
[Result "0-1"]
[Round "01"]
[TimeControl "180+1"]
[Date "2021.05.25"]
[WhiteClock "0:00:18"]
[BlackClock "0:00:25"]

1. e4 {[%clk 0:03:00]}  e6 {[%clk 0:02:58]} 2. d4 {[%clk 0:03:00]}  d5 {[%clk 0:02:58]} 3. Nc3 {[%clk 0:03:00]}  dxe4 {[%clk 0:02:58]} 4. Nxe4 {[%clk 0:03:00]}  Nd7 {[%clk 0:02:59]} 5. Nf3 {[%clk 0:03:00]}  Ngf6 {[%clk 0:02:59]} 6. Bg5 {[%clk 0:02:58]}  c5 {[%clk 0:02:57]} 7. dxc5 {[%clk 0:02:40]}  Bxc5 {[%clk 0:02:51]} 8. Bxf6 {[%clk 0:02:21]}  gxf6 {[%clk 0:02:49]} 9. Nxc5 {[%clk 0:02:21]}  Qa5+ {[%clk 0:02:47]} 10. c3 {[%clk 0:02:19]}  Qxc5 {[%clk 0:02:47]} 11. g3 {[%clk 0:02:15]}  b6 {[%clk 0:02:34]} 12. Bg2 {[%clk 0:02:15]}  Bb7 {[%clk 0:02:34]} 13. O-O {[%clk 0:02:14]}  Rd8 {[%clk 0:02:30]} 14. Qa4 {[%clk 0:02:12]}  a5 {[%clk 0:02:25]} 15. Rad1 {[%clk 0:02:11]}  Bc6 {[%clk 0:02:21]} 16. Qh4 {[%clk 0:02:09]}  Ke7 {[%clk 0:02:13]} 17. Rfe1 {[%clk 0:01:54]}  Bxf3 {[%clk 0:02:13]} 18. Bxf3 {[%clk 0:01:53]}  Ne5 {[%clk 0:02:13]} 19. Be4 {[%clk 0:01:40]}  h5 {[%clk 0:02:09]} 20. Qf4 {[%clk 0:01:34]}  h4 {[%clk 0:02:01]} 21. a3 {[%clk 0:01:29]}  hxg3 {[%clk 0:01:57]} 22. hxg3 {[%clk 0:01:29]}  a4 {[%clk 0:01:33]} 23. Bc2 {[%clk 0:01:11]}  b5 {[%clk 0:01:31]} 24. Kg2 {[%clk 0:01:04]}  Nc4 {[%clk 0:01:27]} 25. Qc1 {[%clk 0:01:02]}  Rxd1 {[%clk 0:01:21]} 26. Rxd1 {[%clk 0:01:01]}  Qc6+ {[%clk 0:01:21]} 27. f3 {[%clk 0:00:58]}  Qc5 {[%clk 0:01:18]} 28. Rd3 {[%clk 0:00:53]}  Qh5 {[%clk 0:01:15]} 29. Qg1 {[%clk 0:00:52]}  Qh3+ {[%clk 0:01:09]} 30. Kf2 {[%clk 0:00:50]}  Qh2+ {[%clk 0:01:07]} 31. Qg2 {[%clk 0:00:49]}  Qxg2+ {[%clk 0:01:02]} 32. Kxg2 {[%clk 0:00:50]}  Nxb2 {[%clk 0:01:02]} 33. Rd4 {[%clk 0:00:45]}  Nc4 {[%clk 0:01:02]} 34. Bxa4 {[%clk 0:00:41]}  Ne3+ {[%clk 0:01:02]} 35. Kf2 {[%clk 0:00:41]}  Nf5 {[%clk 0:01:02]} 36. Bxb5 {[%clk 0:00:39]}  Nxd4 {[%clk 0:01:01]} 37. cxd4 {[%clk 0:00:40]}  Rh2+ {[%clk 0:01:01]} 38. Ke3 {[%clk 0:00:40]}  Ra2 {[%clk 0:01:00]} 39. a4 {[%clk 0:00:40]}  Ra3+ {[%clk 0:00:58]} 40. Ke4 {[%clk 0:00:40]}  Kd6 {[%clk 0:00:56]} 41. g4 {[%clk 0:00:39]}  Ra1 {[%clk 0:00:54]} 42. Be8 {[%clk 0:00:39]}  Ke7 {[%clk 0:00:53]} 43. Bb5 {[%clk 0:00:39]}  Re1+ {[%clk 0:00:54]} 44. Kf4 {[%clk 0:00:39]}  Ra1 {[%clk 0:00:52]} 45. Ke4 {[%clk 0:00:39]}  Ra3 {[%clk 0:00:51]} 46. Kf4 {[%clk 0:00:39]}  Kd6 {[%clk 0:00:51]} 47. Ke4 {[%clk 0:00:40]}  e5 {[%clk 0:00:50]} 48. dxe5+ {[%clk 0:00:35]}  fxe5 {[%clk 0:00:50]} 49. Be8 {[%clk 0:00:35]}  f6 {[%clk 0:00:50]} 50. Bb5 {[%clk 0:00:36]}  Ra1 {[%clk 0:00:46]} 51. Be8 {[%clk 0:00:36]}  Ke6 {[%clk 0:00:43]} 52. Bc6 {[%clk 0:00:26]}  Re1+ {[%clk 0:00:42]} 53. Kd3 {[%clk 0:00:26]}  Rc1 {[%clk 0:00:42]} 54. Be8 {[%clk 0:00:24]}  Kd5 {[%clk 0:00:35]} 55. Bb5 {[%clk 0:00:22]}  Ra1 {[%clk 0:00:34]} 56. Ke3 {[%clk 0:00:22]}  Ra3+ {[%clk 0:00:33]} 57. Kf2 {[%clk 0:00:21]}  Kd4 {[%clk 0:00:34]} 58. Kg3 {[%clk 0:00:21]}  Ke3 {[%clk 0:00:34]} 59. Bc6 {[%clk 0:00:21]}  Rc3 {[%clk 0:00:32]} 60. Bb7 {[%clk 0:00:21]}  Ra3 {[%clk 0:00:31]} 61. Bc6 {[%clk 0:00:21]}  Ra1 {[%clk 0:00:31]} 62. Kh4 {[%clk 0:00:20]}  Kf4 {[%clk 0:00:31]} 63. Kh3 {[%clk 0:00:20]}  Ra3 {[%clk 0:00:29]} 64. Kg2 {[%clk 0:00:19]}  Ra2+ {[%clk 0:00:28]} 65. Kh3 {[%clk 0:00:19]}  Rc2 {[%clk 0:00:28]} 66. Bb7 {[%clk 0:00:18]}  Rb2 {[%clk 0:00:25]} 67. Bc6 {[%clk 0:00:18]}  Ra2 {[%clk 0:00:25]} 68. Bb5 {[%clk 0:00:18]}  Kxf3 {[%clk 0:00:25]} 69. Kh4 {[%clk 0:00:18]}  Kf4 {[%clk 0:00:25]} 70. Kh5 {[%clk 0:00:18]}  e4 {[%clk 0:00:25]} 0-1


[Site "https://www.chess.com"]

[Event "Titled Tuesday Blitz May 25 2021"]
[White "Estrada Nieto, Julian"]
[Black "Nguyen, Van Huy"]
[WhiteFideId "5101018"]
[BlackFideId "12401064"]
[WhiteElo "2270"]
[BlackElo "2443"]
[Result "0-1"]
[Round "01"]
[TimeControl "180+1"]
[Date "2021.05.25"]
[WhiteClock "0:00:03"]
[BlackClock "0:01:57"]

1. e4 {[%clk 0:03:00]}  c6 {[%clk 0:02:59]} 2. d4 {[%clk 0:02:59]}  d5 {[%clk 0:02:59]} 3. Nc3 {[%clk 0:03:00]}  dxe4 {[%clk 0:02:59]} 4. Nxe4 {[%clk 0:03:00]}  Bf5 {[%clk 0:02:59]} 5. Ng3 {[%clk 0:03:00]}  Bg6 {[%clk 0:03:00]} 6. h4 {[%clk 0:03:01]}  h6 {[%clk 0:03:00]} 7. Nf3 {[%clk 0:03:02]}  Nd7 {[%clk 0:02:59]} 8. h5 {[%clk 0:03:02]}  Bh7 {[%clk 0:02:59]} 9. Bd3 {[%clk 0:03:02]}  Bxd3 {[%clk 0:03:00]} 10. Qxd3 {[%clk 0:03:02]}  e6 {[%clk 0:03:01]} 11. Bd2 {[%clk 0:03:02]}  Ngf6 {[%clk 0:03:00]} 12. O-O-O {[%clk 0:02:59]}  Be7 {[%clk 0:03:00]} 13. Ne4 {[%clk 0:02:59]}  Qb6 {[%clk 0:03:00]} 14. c4 {[%clk 0:02:40]}  Nxe4 {[%clk 0:02:59]} 15. Qxe4 {[%clk 0:02:40]}  Qa6 {[%clk 0:02:59]} 16. Kb1 {[%clk 0:01:55]}  Qxc4 {[%clk 0:02:59]} 17. Rc1 {[%clk 0:01:38]}  Qd5 {[%clk 0:02:59]} 18. Qxd5 {[%clk 0:01:35]}  exd5 {[%clk 0:02:39]} 19. Rce1 {[%clk 0:01:23]}  Kd8 {[%clk 0:02:38]} 20. Bf4 {[%clk 0:01:02]}  Bf6 {[%clk 0:02:35]} 21. Bd6 {[%clk 0:00:39]}  Nf8 {[%clk 0:02:29]} 22. Ne5 {[%clk 0:00:29]}  Bxe5 {[%clk 0:02:28]} 23. Bxe5 {[%clk 0:00:19]}  Ne6 {[%clk 0:02:25]} 24. f4 {[%clk 0:00:15]}  Rg8 {[%clk 0:02:17]} 25. f5 {[%clk 0:00:14]}  Ng5 {[%clk 0:02:17]} 26. Bd6 {[%clk 0:00:11]}  Ne4 {[%clk 0:02:16]} 27. Bf4 {[%clk 0:00:08]}  Kd7 {[%clk 0:02:15]} 28. Kc2 {[%clk 0:00:08]}  Rae8 {[%clk 0:02:13]} 29. g4 {[%clk 0:00:08]}  Nf2 {[%clk 0:02:09]} 30. Rhg1 {[%clk 0:00:07]}  Rxe1 {[%clk 0:02:08]} 31. Rxe1 {[%clk 0:00:07]}  Nxg4 {[%clk 0:02:09]} 32. Kd3 {[%clk 0:00:05]}  Nf6 {[%clk 0:02:08]} 33. Be5 {[%clk 0:00:04]}  Nxh5 {[%clk 0:02:06]} 34. Rg1 {[%clk 0:00:04]}  Ke7 {[%clk 0:01:58]} 35. Bh2 {[%clk 0:00:04]}  Nf6 {[%clk 0:01:58]} 36. Re1+ {[%clk 0:00:04]}  Ne4 {[%clk 0:01:58]} 37. Be5 {[%clk 0:00:04]}  g5 {[%clk 0:01:57]} 38. Rf1 {[%clk 0:00:04]}  f6 {[%clk 0:01:57]} 39. Bh2 {[%clk 0:00:03]}  h5 {[%clk 0:01:57]} 0-1


[Site "https://www.chess.com"]

[Event "Titled Tuesday Blitz May 25 2021"]
[White "Eternauta2400"]
[Black "Sarana, Alexey"]
[BlackFideId "24133795"]
[WhiteElo "2455"]
[BlackElo "2629"]
[Result "0-1"]
[Round "01"]
[TimeControl "180+1"]
[Date "2021.05.25"]
[WhiteClock "0:00:06"]
[BlackClock "0:01:08"]

1. e4 {[%clk 0:02:57]}  c5 {[%clk 0:02:58]} 2. c3 {[%clk 0:02:56]}  Nf6 {[%clk 0:02:57]} 3. e5 {[%clk 0:02:56]}  Nd5 {[%clk 0:02:58]} 4. Nf3 {[%clk 0:02:56]}  d6 {[%clk 0:02:57]} 5. d4 {[%clk 0:02:54]}  cxd4 {[%clk 0:02:57]} 6. cxd4 {[%clk 0:02:53]}  Nc6 {[%clk 0:02:57]} 7. Bc4 {[%clk 0:02:53]}  dxe5 {[%clk 0:02:57]} 8. dxe5 {[%clk 0:02:51]}  Ndb4 {[%clk 0:02:53]} 9. Qxd8+ {[%clk 0:02:39]}  Nxd8 {[%clk 0:02:54]} 10. Na3 {[%clk 0:02:34]}  a6 {[%clk 0:02:52]} 11. Bd2 {[%clk 0:02:31]}  e6 {[%clk 0:02:52]} 12. O-O {[%clk 0:02:30]}  Bd7 {[%clk 0:02:52]} 13. Rac1 {[%clk 0:02:26]}  Bc6 {[%clk 0:02:49]} 14. Nd4 {[%clk 0:02:25]}  Be7 {[%clk 0:02:47]} 15. Nac2 {[%clk 0:02:16]}  Nxc2 {[%clk 0:02:41]} 16. Rxc2 {[%clk 0:02:17]}  Be4 {[%clk 0:02:42]} 17. Rcc1 {[%clk 0:02:15]}  Nc6 {[%clk 0:02:42]} 18. Nxc6 {[%clk 0:02:14]}  Bxc6 {[%clk 0:02:42]} 19. Bc3 {[%clk 0:02:13]}  O-O {[%clk 0:02:35]} 20. Rfd1 {[%clk 0:02:13]}  Rfd8 {[%clk 0:02:35]} 21. Ba5 {[%clk 0:02:13]}  Rxd1+ {[%clk 0:02:34]} 22. Rxd1 {[%clk 0:02:14]}  Rc8 {[%clk 0:02:33]} 23. Bb3 {[%clk 0:02:13]}  g5 {[%clk 0:02:32]} 24. h3 {[%clk 0:02:11]}  h5 {[%clk 0:02:32]} 25. Rd3 {[%clk 0:02:05]}  Kf8 {[%clk 0:02:30]} 26. a3 {[%clk 0:02:01]}  Kg7 {[%clk 0:02:18]} 27. Rc3 {[%clk 0:01:55]}  Rh8 {[%clk 0:02:12]} 28. Bc2 {[%clk 0:01:51]}  Bd5 {[%clk 0:01:58]} 29. Kf1 {[%clk 0:01:47]}  g4 {[%clk 0:01:46]} 30. Kg1 {[%clk 0:01:35]}  gxh3 {[%clk 0:01:33]} 31. Rxh3 {[%clk 0:01:34]}  h4 {[%clk 0:01:33]} 32. Rc3 {[%clk 0:01:30]}  Rh5 {[%clk 0:01:31]} 33. Re3 {[%clk 0:01:18]}  Bc5 {[%clk 0:01:28]} 34. Rh3 {[%clk 0:01:09]}  Rg5 {[%clk 0:01:25]} 35. Rh2 {[%clk 0:00:14]}  h3 {[%clk 0:01:20]} 36. Bd2 {[%clk 0:00:10]}  Rg4 {[%clk 0:01:13]} 37. b4 {[%clk 0:00:09]}  Ba7 {[%clk 0:01:08]} 38. Be3 {[%clk 0:00:06]}  Bxe3 {[%clk 0:01:07]} 39. fxe3 {[%clk 0:00:07]}  Bxg2 {[%clk 0:01:08]} 40. Kf2 {[%clk 0:00:07]}  Rc4 {[%clk 0:01:07]} 41. Bd3 {[%clk 0:00:07]}  Rc3 {[%clk 0:01:08]} 42. Bf1 {[%clk 0:00:05]}  Bxf1 {[%clk 0:01:05]} 43. Kxf1 {[%clk 0:00:05]}  Rc1+ {[%clk 0:01:05]} 44. Kf2 {[%clk 0:00:05]}  Rc2+ {[%clk 0:01:06]} 45. Kg3 {[%clk 0:00:05]}  Rxh2 {[%clk 0:01:07]} 46. Kxh2 {[%clk 0:00:05]}  Kg6 {[%clk 0:01:07]} 47. Kxh3 {[%clk 0:00:05]}  Kf5 {[%clk 0:01:08]} 48. Kg3 {[%clk 0:00:06]}  Kxe5 {[%clk 0:01:08]} 49. Kf3 {[%clk 0:00:06]}  Kd5 {[%clk 0:01:09]} 50. Kf4 {[%clk 0:00:06]}  f6 {[%clk 0:01:08]} 51. e4+ {[%clk 0:00:06]}  Kd4 {[%clk 0:01:09]} 52. Kf3 {[%clk 0:00:06]}  e5 {[%clk 0:01:08]} 0-1


[Site "https://www.chess.com"]

[Event "Titled Tuesday Blitz May 25 2021"]
[White "Fernandez, Daniel Howard"]
[Black "Hamley, Ryan"]
[WhiteFideId "5801605"]
[BlackFideId "30959497"]
[WhiteElo "2468"]
[BlackElo "2408"]
[Result "1-0"]
[Round "01"]
[TimeControl "180+1"]
[Date "2021.05.25"]
[WhiteClock "0:01:16"]
[BlackClock "0:00:07"]

1. e4 {[%clk 0:03:00]}  c6 {[%clk 0:02:56]} 2. d4 {[%clk 0:03:00]}  d5 {[%clk 0:02:56]} 3. exd5 {[%clk 0:03:00]}  cxd5 {[%clk 0:02:56]} 4. Bd3 {[%clk 0:03:00]}  Nc6 {[%clk 0:02:56]} 5. c3 {[%clk 0:02:59]}  Nf6 {[%clk 0:02:56]} 6. Bf4 {[%clk 0:02:55]}  Bg4 {[%clk 0:02:55]} 7. Qb3 {[%clk 0:02:55]}  Qd7 {[%clk 0:02:56]} 8. Nd2 {[%clk 0:02:53]}  e6 {[%clk 0:02:55]} 9. Ngf3 {[%clk 0:02:54]}  Bd6 {[%clk 0:02:56]} 10. Bxd6 {[%clk 0:02:51]}  Qxd6 {[%clk 0:02:57]} 11. O-O {[%clk 0:02:51]}  O-O {[%clk 0:02:57]} 12. Rae1 {[%clk 0:02:49]}  Bh5 {[%clk 0:02:49]} 13. Ne5 {[%clk 0:02:46]}  Rab8 {[%clk 0:02:45]} 14. f4 {[%clk 0:02:45]}  Bg6 {[%clk 0:02:35]} 15. Bxg6 {[%clk 0:02:35]}  hxg6 {[%clk 0:02:36]} 16. Re3 {[%clk 0:02:35]}  b5 {[%clk 0:02:28]} 17. Qd1 {[%clk 0:02:29]}  b4 {[%clk 0:02:25]} 18. Rh3 {[%clk 0:02:29]}  bxc3 {[%clk 0:02:23]} 19. bxc3 {[%clk 0:02:30]}  Rb2 {[%clk 0:02:23]} 20. Qe1 {[%clk 0:02:26]}  Rfb8 {[%clk 0:02:00]} 21. Qh4 {[%clk 0:02:14]}  Kf8 {[%clk 0:01:58]} 22. Qh8+ {[%clk 0:02:11]}  Ng8 {[%clk 0:01:56]} 23. Rh7 {[%clk 0:02:10]}  Ne7 {[%clk 0:00:33]} 24. Qxg7+ {[%clk 0:02:05]}  Ke8 {[%clk 0:00:33]} 25. Qxf7+ {[%clk 0:02:05]}  Kd8 {[%clk 0:00:33]} 26. Nb3 {[%clk 0:01:56]}  Rxa2 {[%clk 0:00:20]} 27. Nc5 {[%clk 0:01:55]}  Rbb2 {[%clk 0:00:20]} 28. Nxe6+ {[%clk 0:01:41]}  Kc8 {[%clk 0:00:14]} 29. Qe8+ {[%clk 0:01:39]}  Kb7 {[%clk 0:00:15]} 30. Nc5+ {[%clk 0:01:39]}  Kb6 {[%clk 0:00:10]} 31. Na4+ {[%clk 0:01:34]}  Ka5 {[%clk 0:00:06]} 32. Nxb2 {[%clk 0:01:31]}  Rxb2 {[%clk 0:00:06]} 33. Ra1+ {[%clk 0:01:29]}  Kb6 {[%clk 0:00:07]} 34. Qa4 {[%clk 0:01:16]} 1-0


[Site "https://www.chess.com"]